[Event "Early-Titled-Tuesday-Blitz-February-06-2024"]
[Site "Chess.com"]
[Date "2024.02.06"]
[Round "7"]
[White "tptagain"]
[Black "vi_pranav"]
[Result "1/2-1/2"]
[WhiteElo "2951"]
[BlackElo "3055"]
[TimeControl "180+1"]
[EndTime "9:18:41 PST"]
[Termination "Game drawn - insufficient material"]

1. Nf3 {[%clk 0:03:00.9]} 1... Nf6 {[%clk 0:02:59.7]} 2. d4 {[%clk 0:03:01.1]}
2... e6 {[%clk 0:02:58.9]} 3. Bg5 {[%clk 0:03:01.1]} 3... Be7 {[%clk 0:02:57]}
4. Nbd2 {[%clk 0:03:00.8]} 4... d5 {[%clk 0:02:56.6]} 5. e3 {[%clk 0:03:00.9]}
5... Nbd7 {[%clk 0:02:55.4]} 6. Bd3 {[%clk 0:02:58.2]} 6... b6 {[%clk 0:02:55]}
7. O-O {[%clk 0:02:52.3]} 7... Bb7 {[%clk 0:02:55]} 8. c3 {[%clk 0:02:51.4]}
8... O-O {[%clk 0:02:54]} 9. Qb1 {[%clk 0:02:49.2]} 9... h6 {[%clk 0:02:53.6]}
10. Bh4 {[%clk 0:02:47.1]} 10... c5 {[%clk 0:02:53.5]} 11. b4 {[%clk 0:02:38.2]}
11... cxb4 {[%clk 0:02:48.5]} 12. cxb4 {[%clk 0:02:38.2]} 12... Rc8 {[%clk
0:02:49.3]} 13. Qb2 {[%clk 0:02:34.3]} 13... Ne4 {[%clk 0:02:45.9]} 14. Bxe7
{[%clk 0:02:34.3]} 14... Qxe7 {[%clk 0:02:46.8]} 15. Rfc1 {[%clk 0:02:33.8]}
15... f5 {[%clk 0:02:34.3]} 16. a3 {[%clk 0:02:26.1]} 16... Qd6 {[%clk
0:02:30.3]} 17. g3 {[%clk 0:01:50.1]} 17... Kh7 {[%clk 0:02:03.1]} 18. Nb3
{[%clk 0:01:38.4]} 18... Rc4 {[%clk 0:01:33.9]} 19. Ne5 {[%clk 0:01:30]} 19...
Nxe5 {[%clk 0:01:33.4]} 20. dxe5 {[%clk 0:01:29.9]} 20... Qc7 {[%clk 0:01:33.9]}
21. Nd4 {[%clk 0:00:51]} 21... Qxe5 {[%clk 0:01:26.6]} 22. f4 {[%clk 0:00:40.3]}
22... Qd6 {[%clk 0:01:10]} 23. Rxc4 {[%clk 0:00:31.5]} 23... dxc4 {[%clk
0:01:10.9]} 24. Bxc4 {[%clk 0:00:32.4]} 24... Bd5 {[%clk 0:00:50.1]} 25. Qa2
{[%clk 0:00:25.9]} 25... Nc3 {[%clk 0:00:30.1]} 26. Qb3 {[%clk 0:00:25.7]} 26...
Rc8 {[%clk 0:00:30.4]} 27. Bxd5 {[%clk 0:00:24.3]} 27... Nxd5 {[%clk 0:00:31.3]}
28. Rd1 {[%clk 0:00:20.5]} 28... Rc3 {[%clk 0:00:26.5]} 29. Nxf5 {[%clk
0:00:20.9]} 29... Rxb3 {[%clk 0:00:14.5]} 30. Nxd6 {[%clk 0:00:20.5]} 30... Rxe3
{[%clk 0:00:15.2]} 31. Nb5 {[%clk 0:00:14.3]} 31... a6 {[%clk 0:00:11.7]} 32.
Nd4 {[%clk 0:00:12.8]} 32... Nf6 {[%clk 0:00:07.4]} 33. a4 {[%clk 0:00:11.7]}
33... e5 {[%clk 0:00:05.5]} 34. fxe5 {[%clk 0:00:11.5]} 34... Rxe5 {[%clk
0:00:06.4]} 35. b5 {[%clk 0:00:07.9]} 35... axb5 {[%clk 0:00:07.3]} 36. Nxb5
{[%clk 0:00:07.4]} 36... Re4 {[%clk 0:00:07.5]} 37. Ra1 {[%clk 0:00:03.2]} 37...
Rb4 {[%clk 0:00:07.3]} 38. Nd6 {[%clk 0:00:02.9]} 38... Nd5 {[%clk 0:00:05.9]}
39. a5 {[%clk 0:00:02.7]} 39... bxa5 {[%clk 0:00:06.4]} 40. Rxa5 {[%clk
0:00:03.6]} 40... Ne3 {[%clk 0:00:07]} 41. Ra2 {[%clk 0:00:03]} 41... Rb1+
{[%clk 0:00:06]} 42. Kf2 {[%clk 0:00:03.4]} 42... Ng4+ {[%clk 0:00:06.7]} 43.
Kf3 {[%clk 0:00:03.4]} 43... h5 {[%clk 0:00:07.3]} 44. h3 {[%clk 0:00:03.4]}
44... Ne5+ {[%clk 0:00:07.1]} 45. Kg2 {[%clk 0:00:03.7]} 45... Nd7 {[%clk
0:00:05.4]} 46. Nf5 {[%clk 0:00:03.9]} 46... Rb5 {[%clk 0:00:04]} 47. g4 {[%clk
0:00:03.8]} 47... hxg4 {[%clk 0:00:04.2]} 48. hxg4 {[%clk 0:00:04.7]} 48... Nf6
{[%clk 0:00:04.7]} 49. Ra7 {[%clk 0:00:04.6]} 49... Nxg4 {[%clk 0:00:05.2]} 50.
Rxg7+ {[%clk 0:00:04.6]} 50... Kh8 {[%clk 0:00:05.8]} 51. Rxg4 {[%clk
0:00:05.1]} 51... Rxf5 {[%clk 0:00:06.3]} 52. Rh4+ {[%clk 0:00:05.3]} 52... Kg7
{[%clk 0:00:06.5]} 53. Rg4+ {[%clk 0:00:05.9]} 53... Kf6 {[%clk 0:00:07.1]} 54.
Kg3 {[%clk 0:00:06.3]} 54... Rg5 {[%clk 0:00:07.6]} 55. Rxg5 {[%clk 0:00:06.7]}
55... Kxg5 {[%clk 0:00:08.5]} 1/2-1/2

[Event "Early-Titled-Tuesday-Blitz-February-06-2024"]
[Site "Chess.com"]
[Date "2024.02.06"]
[Round "7"]
[White "RantomOpening"]
[Black "Leonid_Starozhilov"]
[Result "0-1"]
[WhiteElo "2548"]
[BlackElo "2721"]
[TimeControl "180+1"]
[EndTime "9:18:44 PST"]
[Termination "Leonid_Starozhilov won by checkmate"]

1. c4 {[%clk 0:03:00.7]} 1... Nf6 {[%clk 0:03:00]} 2. Nf3 {[%clk 0:03:00.3]}
2... g6 {[%clk 0:03:00.2]} 3. Nc3 {[%clk 0:03:00.2]} 3... Bg7 {[%clk 0:03:00.5]}
4. e4 {[%clk 0:03:00]} 4... d6 {[%clk 0:03:00.6]} 5. d4 {[%clk 0:03:00.5]} 5...
Bg4 {[%clk 0:03:00.8]} 6. Be2 {[%clk 0:02:58.6]} 6... O-O {[%clk 0:02:54.9]} 7.
O-O {[%clk 0:02:58]} 7... a6 {[%clk 0:02:49.5]} 8. Be3 {[%clk 0:02:58]} 8...
Nfd7 {[%clk 0:02:49.6]} 9. h3 {[%clk 0:02:56.7]} 9... Bxf3 {[%clk 0:02:49.7]}
10. Bxf3 {[%clk 0:02:56.6]} 10... c5 {[%clk 0:02:50.4]} 11. d5 {[%clk
0:02:54.6]} 11... b5 {[%clk 0:02:49.7]} 12. cxb5 {[%clk 0:02:49.3]} 12... axb5
{[%clk 0:02:49.5]} 13. Nxb5 {[%clk 0:02:49.5]} 13... Bxb2 {[%clk 0:02:49.7]} 14.
Rb1 {[%clk 0:02:49.6]} 14... Bf6 {[%clk 0:02:48]} 15. a4 {[%clk 0:02:47]} 15...
Qa5 {[%clk 0:02:23.2]} 16. Ra1 {[%clk 0:02:45.9]} 16... Bxa1 {[%clk 0:01:43.4]}
17. Qxa1 {[%clk 0:02:46.8]} 17... Qxa4 {[%clk 0:01:43.3]} 18. Qb2 {[%clk
0:02:46.5]} 18... Qb4 {[%clk 0:01:26.2]} 19. Rb1 {[%clk 0:02:26.3]} 19... Qxb2
{[%clk 0:01:22.1]} 20. Rxb2 {[%clk 0:02:27.2]} 20... Na6 {[%clk 0:01:17.2]} 21.
Be2 {[%clk 0:02:26.5]} 21... Rfb8 {[%clk 0:01:16.1]} 22. Rd2 {[%clk 0:02:23.1]}
22... Nb4 {[%clk 0:01:11.5]} 23. Bg5 {[%clk 0:02:20]} 23... f6 {[%clk
0:01:03.6]} 24. Be3 {[%clk 0:02:16.4]} 24... Ra2 {[%clk 0:00:52.6]} 25. Nc7
{[%clk 0:02:13.2]} 25... Rxd2 {[%clk 0:00:49]} 26. Bxd2 {[%clk 0:02:14.1]} 26...
Rb7 {[%clk 0:00:33.9]} 27. Ne6 {[%clk 0:02:12.3]} 27... Nf8 {[%clk 0:00:32.6]}
28. Nf4 {[%clk 0:02:12.1]} 28... Ra7 {[%clk 0:00:25.1]} 29. Bb5 {[%clk 0:02:10]}
29... Ra1+ {[%clk 0:00:23.4]} 30. Kh2 {[%clk 0:02:10]} 30... Ra2 {[%clk
0:00:23.1]} 31. Be3 {[%clk 0:02:08]} 31... Nc2 {[%clk 0:00:20.7]} 32. Bc4 {[%clk
0:02:06.3]} 32... Rb2 {[%clk 0:00:19.4]} 33. Bc1 {[%clk 0:02:06]} 33... Rb4
{[%clk 0:00:18.2]} 34. Bd3 {[%clk 0:02:04.3]} 34... Nd4 {[%clk 0:00:18.3]} 35.
Be3 {[%clk 0:02:03]} 35... Nd7 {[%clk 0:00:17.1]} 36. Ba6 {[%clk 0:02:00.6]}
36... Ne5 {[%clk 0:00:15.6]} 37. Bc8 {[%clk 0:01:58.7]} 37... Rb8 {[%clk
0:00:11.1]} 38. Ba6 {[%clk 0:01:55.2]} 38... Kg7 {[%clk 0:00:10.1]} 39. h4
{[%clk 0:01:55.6]} 39... h5 {[%clk 0:00:10.2]} 40. f3 {[%clk 0:01:54.9]} 40...
Rb2 {[%clk 0:00:09.8]} 41. Kh3 {[%clk 0:01:54.2]} 41... Rb3 {[%clk 0:00:09.2]}
42. Bxd4 {[%clk 0:01:54]} 42... cxd4 {[%clk 0:00:08.9]} 43. Ne6+ {[%clk
0:01:54.9]} 43... Kf7 {[%clk 0:00:08.9]} 44. Nxd4 {[%clk 0:01:55.8]} 44... Rb1
{[%clk 0:00:08.9]} 45. Bc8 {[%clk 0:01:53.2]} 45... g5 {[%clk 0:00:06.9]} 46.
hxg5 {[%clk 0:01:48.4]} 46... fxg5 {[%clk 0:00:07.8]} 47. Ne6 {[%clk 0:01:47.7]}
47... Kf6 {[%clk 0:00:07.9]} 48. Nf8 {[%clk 0:01:46.7]} 48... h4 {[%clk
0:00:06.6]} 49. Kh2 {[%clk 0:01:45.9]} 49... g4 {[%clk 0:00:05.8]} 50. fxg4
{[%clk 0:01:43]} 50... Kg5 {[%clk 0:00:04.3]} 51. Ne6+ {[%clk 0:01:39.1]} 51...
Kxg4 {[%clk 0:00:03.4]} 52. Nd4+ {[%clk 0:01:39.5]} 52... Kf4 {[%clk 0:00:03.4]}
53. Ne2+ {[%clk 0:01:33.5]} 53... Ke3 {[%clk 0:00:03.2]} 54. Ba6 {[%clk
0:01:18.5]} 54... Rb2 {[%clk 0:00:03.1]} 55. Nc3 {[%clk 0:01:18.1]} 55... Kd4
{[%clk 0:00:03.1]} 56. Nb5+ {[%clk 0:01:17.6]} 56... Rxb5 {[%clk 0:00:02.9]} 57.
Bxb5 {[%clk 0:01:17.8]} 57... Kxe4 {[%clk 0:00:03.3]} 58. Bc6 {[%clk 0:01:18.7]}
58... Kf4 {[%clk 0:00:03]} 59. Kh3 {[%clk 0:01:19.1]} 59... Kg5 {[%clk
0:00:03.4]} 60. g3 {[%clk 0:01:19.6]} 60... hxg3 {[%clk 0:00:03.9]} 61. Kxg3
{[%clk 0:01:20.5]} 61... Kf5 {[%clk 0:00:04.5]} 62. Bb7 {[%clk 0:01:20.4]} 62...
Ke4 {[%clk 0:00:04.7]} 63. Kf2 {[%clk 0:01:20.2]} 63... Nd3+ {[%clk 0:00:04.7]}
64. Kg3 {[%clk 0:01:19.7]} 64... Nb4 {[%clk 0:00:05.4]} 65. Kf2 {[%clk
0:01:18.3]} 65... Nxd5 {[%clk 0:00:06]} 66. Ke2 {[%clk 0:01:19.2]} 66... e5
{[%clk 0:00:04.3]} 67. Ba8 {[%clk 0:01:15.5]} 67... Kd4 {[%clk 0:00:04.8]} 68.
Kd2 {[%clk 0:01:16]} 68... Nf4 {[%clk 0:00:05.2]} 69. Bh1 {[%clk 0:01:14.5]}
69... d5 {[%clk 0:00:05.5]} 70. Ke1 {[%clk 0:01:13.5]} 70... e4 {[%clk
0:00:06.1]} 71. Kd2 {[%clk 0:01:13.9]} 71... e3+ {[%clk 0:00:06.3]} 72. Ke1
{[%clk 0:01:14.4]} 72... Kd3 {[%clk 0:00:05.6]} 73. Bf3 {[%clk 0:01:13.4]} 73...
d4 {[%clk 0:00:05.5]} 74. Bd1 {[%clk 0:01:10.3]} 74... e2 {[%clk 0:00:04.4]} 75.
Ba4 {[%clk 0:01:00.1]} 75... Ke3 {[%clk 0:00:04]} 76. Bc6 {[%clk 0:00:58.1]}
76... Nd3# {[%clk 0:00:04.1]} 0-1

[Event "Early-Titled-Tuesday-Blitz-February-06-2024"]
[Site "Chess.com"]
[Date "2024.02.06"]
[Round "7"]
[White "Atousa"]
[Black "Alexchess1984"]
[Result "1-0"]
[WhiteElo "2488"]
[BlackElo "2645"]
[TimeControl "180+1"]
[EndTime "9:18:46 PST"]
[Termination "Atousa won by resignation"]

1. e4 {[%clk 0:02:57.4]} 1... c5 {[%clk 0:02:59.9]} 2. Nf3 {[%clk 0:02:56.9]}
2... g6 {[%clk 0:03:00]} 3. d4 {[%clk 0:02:55.5]} 3... cxd4 {[%clk 0:03:00.1]}
4. Nxd4 {[%clk 0:02:54.8]} 4... Bg7 {[%clk 0:02:59.9]} 5. Nc3 {[%clk 0:02:53.4]}
5... Nc6 {[%clk 0:02:59.4]} 6. Be3 {[%clk 0:02:53.3]} 6... Nf6 {[%clk
0:02:59.4]} 7. Bc4 {[%clk 0:02:51.9]} 7... O-O {[%clk 0:02:58.5]} 8. f3 {[%clk
0:02:51.6]} 8... Re8 {[%clk 0:02:55.9]} 9. Qd2 {[%clk 0:02:47.5]} 9... e6 {[%clk
0:02:51.7]} 10. O-O-O {[%clk 0:02:42.7]} 10... d5 {[%clk 0:02:50.1]} 11. Bb5
{[%clk 0:02:27.4]} 11... Bd7 {[%clk 0:02:33.2]} 12. Nb3 {[%clk 0:02:01]} 12...
a6 {[%clk 0:02:30.5]} 13. Be2 {[%clk 0:01:52]} 13... b5 {[%clk 0:02:19.3]} 14.
Bg5 {[%clk 0:01:34]} 14... b4 {[%clk 0:01:58.7]} 15. Na4 {[%clk 0:01:30.6]}
15... Na5 {[%clk 0:01:33.7]} 16. Nac5 {[%clk 0:01:23.6]} 16... Nxb3+ {[%clk
0:01:31.9]} 17. Nxb3 {[%clk 0:01:16.3]} 17... Qc7 {[%clk 0:01:19.4]} 18. Qxb4
{[%clk 0:00:59.6]} 18... Rec8 {[%clk 0:01:17.9]} 19. Bd3 {[%clk 0:00:54.7]}
19... a5 {[%clk 0:01:13.6]} 20. Qd2 {[%clk 0:00:44.7]} 20... a4 {[%clk
0:01:11.4]} 21. Nd4 {[%clk 0:00:45]} 21... a3 {[%clk 0:00:55.6]} 22. b3 {[%clk
0:00:45]} 22... Nxe4 {[%clk 0:00:46]} 23. Bxe4 {[%clk 0:00:33.9]} 23... dxe4
{[%clk 0:00:45.5]} 24. fxe4 {[%clk 0:00:27.8]} 24... Bxd4 {[%clk 0:00:45]} 25.
Kb1 {[%clk 0:00:24.2]} 25... e5 {[%clk 0:00:43.6]} 26. Bf6 {[%clk 0:00:22.3]}
26... Ra6 {[%clk 0:00:29.8]} 27. Rhf1 {[%clk 0:00:19.6]} 27... Qc3 {[%clk
0:00:20.8]} 28. Qxc3 {[%clk 0:00:18.9]} 28... Rxc3 {[%clk 0:00:21.3]} 29. Bxe5
{[%clk 0:00:15.5]} 29... Bxe5 {[%clk 0:00:21.3]} 30. Rxd7 {[%clk 0:00:16.4]}
30... Rf6 {[%clk 0:00:17.8]} 31. Rxf6 {[%clk 0:00:14.3]} 31... Bxf6 {[%clk
0:00:17.3]} 32. Kc1 {[%clk 0:00:14]} 32... Re3 {[%clk 0:00:15]} 33. Kd2 {[%clk
0:00:13.3]} 33... Rxe4 {[%clk 0:00:14.9]} 34. c4 {[%clk 0:00:13.8]} 34... Bb2
{[%clk 0:00:13.9]} 35. c5 {[%clk 0:00:12.3]} 35... Kf8 {[%clk 0:00:13.9]} 36. c6
{[%clk 0:00:12.3]} 36... Ke8 {[%clk 0:00:11]} 37. Ra7 {[%clk 0:00:09.2]} 37...
Re6 {[%clk 0:00:09.4]} 38. Ra8+ {[%clk 0:00:08.4]} 38... Ke7 {[%clk 0:00:08.8]}
39. c7 {[%clk 0:00:09.1]} 39... Rd6+ {[%clk 0:00:06.9]} 40. Ke2 {[%clk
0:00:09.6]} 40... Re6+ {[%clk 0:00:04.2]} 41. Kf3 {[%clk 0:00:10]} 41... Rf6+
{[%clk 0:00:04.1]} 42. Ke4 {[%clk 0:00:10.3]} 42... Re6+ {[%clk 0:00:04.2]} 43.
Kf3 {[%clk 0:00:09.4]} 43... Rf6+ {[%clk 0:00:04.5]} 44. Kg4 {[%clk 0:00:09.9]}
44... h5+ {[%clk 0:00:03.9]} 45. Kh3 {[%clk 0:00:10.5]} 45... Rc6 {[%clk
0:00:03.7]} 46. c8=Q {[%clk 0:00:10.9]} 46... Rxc8 {[%clk 0:00:03.8]} 47. Rxc8
{[%clk 0:00:11.8]} 47... Ke6 {[%clk 0:00:03.6]} 48. b4 {[%clk 0:00:11.8]} 48...
g5 {[%clk 0:00:03.7]} 49. g3 {[%clk 0:00:11.1]} 49... f5 {[%clk 0:00:03.5]} 50.
b5 {[%clk 0:00:11.3]} 50... Kd6 {[%clk 0:00:03]} 51. b6 {[%clk 0:00:10.7]} 51...
Kd7 {[%clk 0:00:03.2]} 52. b7 {[%clk 0:00:11.2]} 52... Be5 {[%clk 0:00:03.3]}
53. b8=Q {[%clk 0:00:11.6]} 53... Bxb8 {[%clk 0:00:03.4]} 54. Rxb8 {[%clk
0:00:12.5]} 54... Kc6 {[%clk 0:00:04]} 55. Ra8 {[%clk 0:00:13.1]} 55... Kc5
{[%clk 0:00:04]} 56. Rxa3 {[%clk 0:00:13.8]} 56... Kd4 {[%clk 0:00:04.5]} 57.
Ra8 {[%clk 0:00:14.5]} 57... Ke3 {[%clk 0:00:04.3]} 58. Kg2 {[%clk 0:00:15.1]}
58... Ke2 {[%clk 0:00:04.5]} 59. Re8+ {[%clk 0:00:14.6]} 59... Kd3 {[%clk
0:00:04.3]} 60. a4 {[%clk 0:00:15.5]} 60... f4 {[%clk 0:00:04.9]} 61. a5 {[%clk
0:00:16.2]} 61... f3+ {[%clk 0:00:05.1]} 62. Kxf3 {[%clk 0:00:16.2]} 62... g4+
{[%clk 0:00:06]} 63. Kg2 {[%clk 0:00:16.6]} 63... Kd2 {[%clk 0:00:05.6]} 64. a6
{[%clk 0:00:17.1]} 64... Kd3 {[%clk 0:00:06.5]} 65. a7 {[%clk 0:00:17.7]} 65...
Kd2 {[%clk 0:00:07.4]} 66. a8=Q {[%clk 0:00:18.1]} 66... Kd3 {[%clk 0:00:08.3]}
67. Qd5+ {[%clk 0:00:18.1]} 1-0

[Event "Early-Titled-Tuesday-Blitz-February-06-2024"]
[Site "Chess.com"]
[Date "2024.02.06"]
[Round "7"]
[White "PepeCuenca"]
[Black "JonasEilenberg"]
[Result "1-0"]
[WhiteElo "2711"]
[BlackElo "2531"]
[TimeControl "180+1"]
[EndTime "9:18:47 PST"]
[Termination "PepeCuenca won by resignation"]

1. d4 {[%clk 0:03:00.9]} 1... d5 {[%clk 0:03:00.1]} 2. c4 {[%clk 0:03:00.3]}
2... e6 {[%clk 0:03:00.7]} 3. Nf3 {[%clk 0:03:00.2]} 3... c6 {[%clk 0:03:00.9]}
4. e3 {[%clk 0:02:58.3]} 4... Nf6 {[%clk 0:03:00]} 5. b3 {[%clk 0:02:55.7]} 5...
Nbd7 {[%clk 0:02:58.1]} 6. Bb2 {[%clk 0:02:49.8]} 6... b6 {[%clk 0:02:56]} 7.
Nbd2 {[%clk 0:02:46.3]} 7... Bb7 {[%clk 0:02:56.3]} 8. Bd3 {[%clk 0:02:46.3]}
8... Be7 {[%clk 0:02:54.2]} 9. O-O {[%clk 0:02:36]} 9... O-O {[%clk 0:02:54.4]}
10. Qe2 {[%clk 0:02:33.5]} 10... c5 {[%clk 0:02:39.5]} 11. cxd5 {[%clk 0:02:27]}
11... Nxd5 {[%clk 0:02:39.3]} 12. Ba6 {[%clk 0:02:03.4]} 12... Qc8 {[%clk
0:02:12.9]} 13. Bxb7 {[%clk 0:02:01.9]} 13... Qxb7 {[%clk 0:02:13.8]} 14. a3
{[%clk 0:01:47.9]} 14... Rfd8 {[%clk 0:02:11]} 15. Rfd1 {[%clk 0:01:44.4]} 15...
cxd4 {[%clk 0:02:08.8]} 16. Nxd4 {[%clk 0:01:42.8]} 16... Bf6 {[%clk 0:02:05.3]}
17. Ne4 {[%clk 0:01:37.8]} 17... Nc5 {[%clk 0:01:49.5]} 18. Nxf6+ {[%clk
0:01:29.4]} 18... Nxf6 {[%clk 0:01:49.4]} 19. b4 {[%clk 0:01:18.1]} 19... Na4
{[%clk 0:01:47.4]} 20. b5 {[%clk 0:01:07.2]} 20... Nxb2 {[%clk 0:01:35.6]} 21.
Qxb2 {[%clk 0:01:06.1]} 21... Rd5 {[%clk 0:01:31.3]} 22. Nc6 {[%clk 0:01:02.5]}
22... a6 {[%clk 0:01:28.9]} 23. a4 {[%clk 0:00:52.8]} 23... h5 {[%clk
0:01:18.3]} 24. h3 {[%clk 0:00:50.3]} 24... axb5 {[%clk 0:00:37.8]} 25. axb5
{[%clk 0:00:50.1]} 25... Rxa1 {[%clk 0:00:38.7]} 26. Rxa1 {[%clk 0:00:48.9]}
26... Qd7 {[%clk 0:00:39.3]} 27. Qc2 {[%clk 0:00:31.1]} 27... g6 {[%clk
0:00:31.3]} 28. Qc3 {[%clk 0:00:24.9]} 28... Kg7 {[%clk 0:00:28.4]} 29. Rb1
{[%clk 0:00:17]} 29... Rd1+ {[%clk 0:00:22.8]} 30. Rxd1 {[%clk 0:00:16.8]} 30...
Qxd1+ {[%clk 0:00:23.7]} 31. Kh2 {[%clk 0:00:17.6]} 31... Qd6+ {[%clk
0:00:24.3]} 32. f4 {[%clk 0:00:14.7]} 32... Qd5 {[%clk 0:00:20.6]} 33. Nd4
{[%clk 0:00:07.9]} 33... h4 {[%clk 0:00:13.9]} 34. Nf3 {[%clk 0:00:03.1]} 34...
Qxb5 {[%clk 0:00:12.4]} 35. Nxh4 {[%clk 0:00:03]} 35... Qc5 {[%clk 0:00:10.8]}
36. Qxc5 {[%clk 0:00:02.3]} 36... bxc5 {[%clk 0:00:11.7]} 37. Kg1 {[%clk
0:00:02.8]} 37... Ne4 {[%clk 0:00:10.7]} 38. Kf1 {[%clk 0:00:03]} 38... Kf6
{[%clk 0:00:08.7]} 39. Nf3 {[%clk 0:00:02.9]} 39... Kf5 {[%clk 0:00:06.4]} 40.
Ne5 {[%clk 0:00:03]} 40... Kf6 {[%clk 0:00:04]} 41. g4 {[%clk 0:00:03.3]} 41...
Ke7 {[%clk 0:00:04.5]} 42. Ke2 {[%clk 0:00:03.8]} 42... g5 {[%clk 0:00:04.6]}
43. fxg5 {[%clk 0:00:03.6]} 43... Nxg5 {[%clk 0:00:05.5]} 44. h4 {[%clk
0:00:04.2]} 44... Nh7 {[%clk 0:00:05.3]} 45. Kd3 {[%clk 0:00:03.5]} 45... f5
{[%clk 0:00:05.4]} 46. g5 {[%clk 0:00:03.7]} 46... Kf8 {[%clk 0:00:05.4]} 47.
Kc4 {[%clk 0:00:03.7]} 47... Kg7 {[%clk 0:00:05.4]} 48. Kxc5 {[%clk 0:00:04.2]}
48... Nf8 {[%clk 0:00:06.1]} 49. Kd6 {[%clk 0:00:03.7]} 49... Kg8 {[%clk
0:00:06.1]} 50. Ke7 {[%clk 0:00:03.5]} 50... Kg7 {[%clk 0:00:06.3]} 51. h5
{[%clk 0:00:03.7]} 51... Kg8 {[%clk 0:00:06.4]} 52. g6 {[%clk 0:00:03.1]} 52...
Kg7 {[%clk 0:00:06.5]} 53. h6+ {[%clk 0:00:01.8]} 53... Kg8 {[%clk 0:00:05.8]}
54. g7 {[%clk 0:00:02.1]} 54... Nh7 {[%clk 0:00:06.1]} 55. Kxe6 {[%clk
0:00:02.7]} 55... Ng5+ {[%clk 0:00:06.3]} 56. Kxf5 {[%clk 0:00:03.3]} 56... Nh7
{[%clk 0:00:06.2]} 57. Kg6 {[%clk 0:00:03.3]} 1-0

[Event "Early-Titled-Tuesday-Blitz-February-06-2024"]
[Site "Chess.com"]
[Date "2024.02.06"]
[Round "7"]
[White "ActorXu"]
[Black "PabloZarnicki"]
[Result "0-1"]
[WhiteElo "2843"]
[BlackElo "2630"]
[TimeControl "180+1"]
[EndTime "9:18:51 PST"]
[Termination "PabloZarnicki won by resignation"]

1. e4 {[%clk 0:03:00.9]} 1... e6 {[%clk 0:02:56.9]} 2. d3 {[%clk 0:02:59.7]}
2... d5 {[%clk 0:02:57.8]} 3. Nd2 {[%clk 0:03:00]} 3... Nf6 {[%clk 0:02:56.1]}
4. Ngf3 {[%clk 0:03:00.2]} 4... Nc6 {[%clk 0:02:48.6]} 5. g3 {[%clk 0:03:00.2]}
5... dxe4 {[%clk 0:02:48.7]} 6. dxe4 {[%clk 0:02:59.8]} 6... e5 {[%clk
0:02:49.6]} 7. Bg2 {[%clk 0:03:00]} 7... Bc5 {[%clk 0:02:49.4]} 8. O-O {[%clk
0:03:00.1]} 8... O-O {[%clk 0:02:50]} 9. c3 {[%clk 0:03:00.4]} 9... a5 {[%clk
0:02:50.4]} 10. Qe2 {[%clk 0:02:59.8]} 10... Qe7 {[%clk 0:02:50.6]} 11. Nc4
{[%clk 0:02:57.1]} 11... b6 {[%clk 0:02:50.7]} 12. a4 {[%clk 0:02:40.3]} 12...
Ba6 {[%clk 0:02:50.7]} 13. Nh4 {[%clk 0:02:37]} 13... Qe6 {[%clk 0:02:49.9]} 14.
b3 {[%clk 0:02:37.3]} 14... Ne7 {[%clk 0:02:44.7]} 15. Nf5 {[%clk 0:02:30.8]}
15... Bxc4 {[%clk 0:02:43.4]} 16. bxc4 {[%clk 0:02:29.1]} 16... g6 {[%clk
0:02:36.9]} 17. Nxe7+ {[%clk 0:02:08.4]} 17... Qxe7 {[%clk 0:02:34.4]} 18. Bh6
{[%clk 0:02:03]} 18... Rfd8 {[%clk 0:02:32.6]} 19. Kh1 {[%clk 0:01:53]} 19...
Qe6 {[%clk 0:02:31.4]} 20. h3 {[%clk 0:01:49.9]} 20... Bf8 {[%clk 0:02:28.7]}
21. Bxf8 {[%clk 0:01:45.4]} 21... Kxf8 {[%clk 0:02:28]} 22. f4 {[%clk
0:01:45.9]} 22... Kg7 {[%clk 0:02:23.2]} 23. Rf3 {[%clk 0:01:31.1]} 23... exf4
{[%clk 0:02:18.3]} 24. e5 {[%clk 0:01:28.8]} 24... Nh5 {[%clk 0:01:58.8]} 25.
gxf4 {[%clk 0:01:28.3]} 25... f5 {[%clk 0:01:56.1]} 26. Kh2 {[%clk 0:01:24.1]}
26... Rd7 {[%clk 0:01:53.9]} 27. Rff1 {[%clk 0:01:21.9]} 27... Rad8 {[%clk
0:01:53.4]} 28. Bd5 {[%clk 0:01:19.7]} 28... Qe7 {[%clk 0:01:51.7]} 29. Ra2
{[%clk 0:01:15.6]} 29... Qc5 {[%clk 0:01:50.7]} 30. Qf2 {[%clk 0:01:12.3]} 30...
c6 {[%clk 0:01:34.5]} 31. Qxc5 {[%clk 0:01:08.2]} 31... bxc5 {[%clk 0:01:35.4]}
32. Bxc6 {[%clk 0:01:08.8]} 32... Rd2+ {[%clk 0:01:35.4]} 33. Rxd2 {[%clk
0:01:01.9]} 33... Rxd2+ {[%clk 0:01:36.3]} 34. Kg1 {[%clk 0:01:02.4]} 34... Rd3
{[%clk 0:01:29.6]} 35. Bd5 {[%clk 0:00:57.8]} 35... Rxh3 {[%clk 0:01:18.9]} 36.
e6 {[%clk 0:00:54.3]} 36... Re3 {[%clk 0:01:06.2]} 37. Kf2 {[%clk 0:00:51.8]}
37... Rxc3 {[%clk 0:00:42.5]} 38. e7 {[%clk 0:00:49.6]} 38... Rc2+ {[%clk
0:00:38.7]} 39. Ke3 {[%clk 0:00:41.2]} 39... Nf6 {[%clk 0:00:34.7]} 40. Re1
{[%clk 0:00:37.4]} 40... Ne8 {[%clk 0:00:30.7]} 41. Kd3 {[%clk 0:00:29.1]} 41...
Rb2 {[%clk 0:00:30]} 42. Bc6 {[%clk 0:00:29]} 42... Rb8 {[%clk 0:00:30]} 43. Re5
{[%clk 0:00:27.3]} 43... Kf6 {[%clk 0:00:29.3]} 44. Rxc5 {[%clk 0:00:24.6]}
44... Rc8 {[%clk 0:00:15.3]} 45. Kd4 {[%clk 0:00:21.9]} 45... Kxe7 {[%clk
0:00:15]} 46. Re5+ {[%clk 0:00:21.4]} 46... Kf7 {[%clk 0:00:14.1]} 47. Bf3
{[%clk 0:00:16]} 47... Nf6 {[%clk 0:00:13.4]} 48. Rxa5 {[%clk 0:00:13.8]} 48...
h5 {[%clk 0:00:12.9]} 49. Ra7+ {[%clk 0:00:13.3]} 49... Ke6 {[%clk 0:00:12.3]}
50. a5 {[%clk 0:00:12]} 50... h4 {[%clk 0:00:12.2]} 51. a6 {[%clk 0:00:11.6]}
51... h3 {[%clk 0:00:12.6]} 52. Rg7 {[%clk 0:00:10.1]} 52... Rd8+ {[%clk
0:00:12.6]} 53. Kc3 {[%clk 0:00:08.8]} 53... Ne4+ {[%clk 0:00:12.8]} 54. Bxe4
{[%clk 0:00:04.3]} 54... fxe4 {[%clk 0:00:13.2]} 55. Rxg6+ {[%clk 0:00:04.2]}
55... Kf5 {[%clk 0:00:13.7]} 56. Rh6 {[%clk 0:00:04.6]} 56... Kg4 {[%clk
0:00:14.3]} 57. c5 {[%clk 0:00:03.2]} 57... e3 {[%clk 0:00:14.6]} 58. a7 {[%clk
0:00:02.7]} 58... e2 {[%clk 0:00:14.5]} 59. Re6 {[%clk 0:00:03.4]} 59... h2
{[%clk 0:00:14.2]} 60. Rd6 {[%clk 0:00:02.5]} 60... e1=Q+ {[%clk 0:00:13.9]} 0-1